bitfinex-derivatives/quotes_BNBF0:USTF0_20250101
["timestamp","ask_amount","ask_price","bid_price","bid_amount"]
[1735743597519,0.26000115,708.7,707.39,1.04623944]
[1735743597723,0.2599945,708.69,707.39,1.04623944]
[1735743597926,0.2599945,708.68,707.39,1.04623944]
[1735743598123,1.04199792,708.71,707.39,1.04623944]
[1735743598323,0.25999684,708.7,707.39,1.04623944]
[1735743598721,0.25999684,708.69,707.39,1.04623944]
[1735743598923,1.04199792,708.73,707.39,1.04623944]
[1735743599141,0.25999236,708.72,707.39,1.04623944]
[1735743600328,0.25999236,708.71,707.39,1.04623944]
[1735743600522,1.04199792,708.76,707.39,1.04623944]
[1735743601026,0.25996579,708.75,707.39,1.04623944]
[1735743601224,0.25997467,708.75,707.38,1.04623944]
[1735743601430,1.04199792,708.78,707.38,1.04623944]
[1735743602334,0.25994982,708.77,707.45,1.04623944]
[1735743602531,0.25994982,708.76,707.45,1.04623944]
[1735743602724,0.25994982,708.75,707.45,1.04623944]
[1735743602929,0.25994982,708.74,707.45,1.04623944]
[1735743603125,0.25994982,708.73,707.45,1.04623944]
[1735743603327,0.25994982,708.72,707.45,1.04623944]
[1735743603530,0.25994982,708.71,707.45,1.04623944]
[1735743603828,0.25994982,708.7,707.53,1.04623944]
[1735743604024,1.04199792,708.78,707.53,1.04623944]
[1735743604223,0.25994909,708.77,707.53,1.04623944]
[1735743604934,0.25995288,708.76,707.53,1.04623944]
[1735743605232,0.25995288,708.75,707.57,1.04623944]
[1735743605431,0.25995288,708.74,707.57,1.04623944]
[1735743605636,0.25995288,708.73,707.57,1.04623944]
[1735743605827,0.25995288,708.72,707.57,1.04623944]
[1735743606027,0.25994194,708.71,707.57,1.04623944]
[1735743606252,0.25994428,708.7,707.57,1.04623944]
[1735743606428,0.25994428,708.69,707.57,1.04623944]
[1735743606629,0.25994428,708.68,707.58,1.04623944]
[1735743606829,0.25994428,708.67,707.58,1.04623944]
[1735743607031,0.25994428,708.66,707.58,1.04623944]
[1735743607333,0.25994428,708.65,707.58,1.04623944]
[1735743607636,0.25994047,708.64,707.66,1.04623944]
[1735743607834,0.25994047,708.63,707.66,1.04623944]
[1735743608035,0.25994047,708.62,707.66,1.04623944]
[1735743608234,0.25994263,708.61,707.65,1.04623944]
[1735743608434,1.04199792,708.74,707.65,1.04623944]
[1735743608634,0.25994671,708.73,707.65,1.04623944]
[1735743609632,0.25994671,708.73,707.38,0.72284675]
[1735743609633,0.25994671,708.73,707.64,1.04623944]
[1735743609832,0.25994671,708.72,707.64,1.04623944]
[1735743610033,0.25994671,708.71,707.64,1.04623944]
[1735743610237,0.25994671,708.74,707.64,1.04623944]
[1735743610438,0.25994671,708.73,707.64,1.04623944]
[1735743610757,0.25994671,708.72,707.64,1.04623944]
[1735743610939,0.25994671,708.71,707.65,1.04623944]
[1735743611236,0.25994671,708.7,707.65,1.04623944]
[1735743611438,0.25994671,708.69,707.65,1.04623944]
[1735743611637,0.25994671,708.68,707.65,1.04623944]
[1735743611838,0.25994671,708.67,707.66,1.04623944]
[1735743612038,0.25994671,708.66,707.66,1.04623944]
[1735743612238,1.04199792,708.75,707.66,1.04623944]
[1735743612536,0.25993948,708.74,707.66,1.04623944]
[1735743612757,1.04199792,708.75,707.66,1.04623944]
[1735743612939,0.25993947,708.73,707.66,1.04623944]
[1735743613139,0.25993947,708.72,707.66,1.04623944]
[1735743613347,0.25993947,708.71,707.66,1.04623944]
[1735743613535,0.25993947,708.7,707.66,1.04623944]
[1735743613735,0.25993947,708.69,707.66,1.04623944]
[1735743613933,0.25993947,708.68,707.66,1.04623944]
[1735743614136,0.25993947,708.67,707.66,1.04623944]
[1735743614331,0.25993947,708.66,707.66,1.04623944]
[1735743614539,0.25993947,708.65,707.66,1.04623944]
[1735743614737,0.25993947,708.64,707.66,1.04623944]
[1735743614933,1.04199792,708.75,707.66,1.04623944]
[1735743615237,0.25994129,708.74,707.66,1.04623944]
[1735743615436,0.25993334,708.74,707.66,1.04623944]
[1735743616039,0.25993402,708.73,707.69,1.04623944]
[1735743616340,0.25993402,708.72,707.69,1.04623944]
[1735743616540,0.25993402,708.71,707.69,1.04623944]
[1735743616840,0.25993402,708.7,707.69,1.04623944]
[1735743617142,0.25993402,708.69,707.69,1.04623944]
[1735743617348,0.28216704,708.8,707.47,1.04623944]
[1735743617349,0.25993402,708.68,707.68,1.04623944]
[1735743617634,0.25993402,708.67,707.68,1.04623944]
[1735743617840,0.25993402,708.66,707.68,1.04623944]
[1735743618040,0.25993925,708.65,707.68,1.04623944]
[1735743618344,0.25993925,708.64,707.68,1.04623944]
[1735743618544,0.25993925,708.63,707.68,1.04623944]
[1735743618840,0.28216704,708.8,707.38,0.72284675]
[1735743618841,0.25993925,708.62,707.69,1.04623944]
[1735743619039,0.25993925,708.61,707.69,1.04623944]
[1735743619235,0.25993925,708.6,707.69,1.04623944]
[1735743619441,0.25993925,708.59,707.69,1.04623944]
[1735743619640,0.25993925,708.58,707.69,1.04623944]
[1735743619840,0.25993925,708.57,707.69,1.04623944]
[1735743620036,1.04199792,708.67,707.73,1.04623944]
[1735743620245,0.2599461,708.66,707.73,1.04623944]
[1735743620638,0.25994773,708.65,707.73,1.04623944]
[1735743620844,0.25994773,708.64,707.73,1.04623944]
[1735743621043,0.25994773,708.63,707.73,1.04623944]
[1735743621248,0.25994773,708.62,707.73,1.04623944]
[1735743621445,0.25994773,708.61,707.73,1.04623944]
[1735743621658,0.25994773,708.6,707.68,1.04623944]
[1735743621840,0.25994773,708.59,707.68,1.04623944]
[1735743622048,0.25994773,708.58,707.68,1.04623944]
[1735743622346,0.25994773,708.57,707.68,1.04623944]
[1735743622556,0.25994773,708.56,707.68,1.04623944]
[1735743622749,0.25999257,708.55,707.68,1.04623944]
[1735743623055,1.04199792,708.64,707.63,1.04623944]
[1735743623251,0.25999132,708.63,707.63,1.04623944]
[1735743624342,1.30198924,708.63,707.52,1.04623944]
[1735743624655,0.25999132,708.62,707.52,1.04623944]
[1735743625754,1.04199792,708.62,707.41,1.04623944]
[1735743625948,0.26002373,708.61,707.41,1.04623944]
[1735743626648,0.26002373,708.61,707.37,0.28273746]
[1735743627750,1.04199792,708.53,707.46,1.04623944]
[1735743627949,0.26002373,708.52,707.46,1.04623944]
[1735743628449,0.26002051,708.51,707.46,1.04623944]
[1735743628646,0.26002051,708.5,707.41,1.04623944]
[1735743628846,0.26002051,708.49,707.41,1.04623944]
[1735743629074,0.26002051,708.48,707.41,1.04623944]
[1735743629250,0.26002051,708.47,707.41,1.04623944]
[1735743629450,0.26002051,708.46,707.41,1.04623944]
[1735743629650,0.28216704,708.8,707.37,0.28273746]
[1735743629651,0.26002051,708.45,707.44,1.04623944]
[1735743629851,0.26002051,708.44,707.44,1.04623944]
[1735743630150,0.26002051,708.43,707.44,1.04623944]
[1735743630353,0.26002051,708.42,707.44,1.04623944]
[1735743630552,0.26002051,708.41,707.44,1.04623944]
[1735743630752,1.04199792,708.57,707.43,1.04623944]
[1735743630952,0.26001247,708.56,707.43,1.04623944]
[1735743631755,0.26000822,708.55,707.43,1.04623944]
[1735743632055,0.26000822,708.54,707.41,1.04623944]
[1735743632353,0.26000822,708.53,707.41,1.04623944]
[1735743632552,0.26000822,708.52,707.41,1.04623944]
[1735743632755,0.26000822,708.51,707.41,1.04623944]
[1735743632955,0.26000822,708.5,707.37,0.28273746]
[1735743633160,0.26000822,708.49,707.37,0.28273746]
[1735743633456,1.04199792,708.66,707.37,0.28273746]
[1735743633851,0.26002755,708.65,707.37,0.28273746]
[1735743635360,1.04199792,708.68,707.37,0.28273746]
[1735743635361,0.26002755,708.64,707.37,0.28273746]
[1735743635661,0.26002755,708.63,707.37,0.28273746]
[1735743635863,0.26002755,708.62,707.37,0.28273746]
[1735743636062,0.26002755,708.61,707.37,0.28273746]
[1735743636260,0.26002755,708.6,707.37,0.28273746]
[1735743636461,0.26003839,708.59,707.37,0.28273746]
[1735743636661,0.26003839,708.58,707.37,0.28273746]
[1735743636861,0.26003839,708.57,707.37,0.28273746]
[1735743637058,0.26003839,708.66,707.37,0.28273746]
[1735743637264,0.54226515,708.65,707.37,0.28273746]
[1735743637464,0.26003928,708.64,707.37,0.28273746]
[1735743638464,1.04199792,708.57,707.37,0.28273746]
[1735743638665,0.54230189,708.56,707.37,0.28273746]
[1735743638964,0.54232915,708.55,707.37,0.28273746]
[1735743639165,0.54233313,708.54,707.37,0.28273746]
[1735743639359,0.54233711,708.53,707.37,0.28273746]
[1735743639559,0.26006255,708.52,707.37,0.28273746]
[1735743639764,0.2600642,708.52,707.37,0.28273746]
[1735743640165,0.28228253,708.51,707.37,0.28273746]
[1735743640362,0.2600642,708.5,707.37,0.28273746]
[1735743641765,0.26005388,708.49,707.37,0.28273746]
[1735743641966,0.26005388,708.48,707.37,0.28273746]
[1735743642166,0.26005388,708.47,707.37,0.28273746]
[1735743642366,0.28228253,708.51,707.37,0.28273746]
[1735743642367,0.26005388,708.46,707.37,0.28273746]
[1735743642571,0.26005388,708.45,707.37,0.28273746]
[1735743642765,0.26005388,708.44,707.37,0.28273746]
[1735743642969,0.26005388,708.43,707.37,0.28273746]
[1735743643162,0.26004353,708.42,707.37,0.28273746]
[1735743643363,0.26004353,708.41,707.37,0.28273746]
[1735743643669,0.26004353,708.4,707.37,0.28273746]
[1735743643869,0.26004353,708.39,707.37,0.28273746]
[1735743644068,0.26004353,708.38,707.37,0.28273746]
[1735743644266,0.26004353,708.37,707.37,0.28273746]
[1735743644564,0.26005024,708.36,707.37,0.28273746]
[1735743644769,0.26005024,708.35,707.37,0.28273746]
[1735743644964,0.28228253,708.51,707.37,0.28273746]
[1735743644965,0.26005024,708.34,707.37,0.28273746]
[1735743645170,0.28228253,708.51,707.37,0.28273746]
[1735743645369,0.26005959,708.5,707.37,0.28273746]
[1735743647070,0.26006236,708.49,707.37,0.28273746]
[1735743647268,0.26006236,708.48,707.37,0.28273746]
[1735743647467,0.26006236,708.47,707.37,0.28273746]
[1735743647674,0.28228253,708.51,707.37,0.28273746]
[1735743647873,0.26005714,708.5,707.37,0.28273746]
[1735743649674,0.28228253,708.51,707.37,0.28273746]
[1735743649973,0.26006202,708.5,707.37,0.28273746]
[1735743652269,0.28228253,708.51,707.37,0.28273746]
[1735743652574,0.26006135,708.5,707.37,0.28273746]
[1735743652874,1.30205927,708.5,707.37,0.28273746]
[1735743653074,0.26006135,708.49,707.37,0.28273746]
[1735743654068,1.04199792,708.46,707.37,0.28273746]
[1735743654276,0.26006135,708.45,707.37,0.28273746]
[1735743654969,0.26006164,708.44,707.37,0.28273746]
[1735743655171,0.26006164,708.43,707.37,0.28273746]
[1735743655372,0.26006164,708.45,707.37,0.28273746]
[1735743655571,0.26006164,708.44,707.37,0.28273746]
[1735743655771,0.26006164,708.43,707.37,0.28273746]
[1735743655980,1.30205956,708.42,707.37,0.28273746]
[1735743656168,0.26006164,708.41,707.37,0.28273746]
[1735743657076,1.30205956,708.41,707.37,0.28273746]
[1735743657373,0.26006164,708.4,707.37,0.28273746]
[1735743658176,1.04199792,708.35,707.37,0.28273746]
[1735743658375,0.26006164,708.34,707.37,0.28273746]
[1735743659076,1.30205956,708.34,707.37,0.28273746]
[1735743659272,0.26006164,708.33,707.37,0.28273746]
[1735743660079,1.30205956,708.33,707.37,1.3289769]
[1735743660375,0.26007409,708.32,707.37,1.3289769]
[1735743661373,0.26007409,708.32,707.37,0.28273746]
[1735743661573,0.26007409,708.31,707.37,0.28273746]
[1735743661769,0.26007409,708.3,707.37,0.28273746]
[1735743662076,0.26007528,708.29,707.37,0.28273746]
[1735743662271,1.04199792,708.36,707.37,0.28273746]
[1735743662577,0.260078,708.35,707.37,0.28273746]
[1735743662776,0.260078,708.34,707.37,0.28273746]
[1735743662990,0.260078,708.36,707.37,0.28273746]
[1735743663177,0.260078,708.35,707.37,0.28273746]
[1735743663487,1.30207592,708.34,707.37,0.28273746]
[1735743663679,0.260078,708.33,707.37,0.28273746]
[1735743663888,0.260078,708.33,707.31,1.04623944]
[1735743664578,1.04199792,708.28,707.31,1.04623944]
[1735743664778,1.04199792,708.28,707.07,1.04623944]
[1735743664779,0.26010281,708.27,707.28,1.04623944]
[1735743665677,0.26010281,708.27,707.26,1.04623944]
[1735743665876,0.26010281,708.26,707.26,1.04623944]
[1735743666077,0.26010281,708.25,707.26,1.04623944]
[1735743666379,0.26010281,708.24,707.26,1.04623944]
[1735743666578,0.26010281,708.23,707.26,1.04623944]
[1735743666779,0.26010281,708.22,707.2,1.04623944]
[1735743666972,0.26010281,708.21,707.2,1.04623944]
[1735743667174,0.26010281,708.2,707.2,1.04623944]
[1735743667371,0.26010281,708.19,707.2,1.04623944]
[1735743667580,0.26010281,708.26,707.2,1.0415254]
[1735743667777,0.26010281,708.25,707.2,1.0415254]
[1735743668077,0.26010281,708.24,707.2,1.0415254]
[1735743668278,1.30210073,708.23,707.01,1.04623944]
[1735743668471,0.26010281,708.22,707.01,1.04623944]
[1735743669579,0.26010281,708.22,706.79,1.04623944]
[1735743669780,0.26016898,708.21,706.79,1.04623944]
[1735743669980,0.26016898,708.2,706.79,1.04623944]
[1735743670177,0.26016898,708.19,706.79,1.04623944]
[1735743670376,0.26016898,708.18,706.79,1.04623944]
[1735743670579,0.26017446,708.17,706.74,1.04623944]
[1735743670774,0.26017446,708.16,706.74,1.32922894]
[1735743670980,0.26017446,708.15,706.74,1.32922894]
[1735743671182,0.26017446,708.14,706.74,1.32922894]
[1735743671374,0.26017446,708.13,706.74,1.32922894]
[1735743671576,0.26017446,708.12,706.74,1.32922894]
[1735743671775,1.04199792,708.21,706.74,1.32922894]
[1735743671978,0.26015492,708.2,706.74,0.2829895]
[1735743672178,0.26015492,708.19,706.74,0.2829895]
[1735743672383,0.26015492,708.22,706.74,0.2829895]
[1735743672678,0.26015688,708.21,706.74,0.2829895]
[1735743672881,0.26015688,708.2,706.74,0.2829895]
[1735743673092,0.26015688,708.19,706.74,0.2829895]
[1735743673384,0.26015688,708.18,706.74,0.2829895]
[1735743673585,0.26015688,708.17,706.74,0.2829895]
[1735743673785,0.26015688,708.16,706.74,0.2829895]
[1735743673988,0.26015688,708.15,706.74,0.2829895]
[1735743674291,0.26015688,708.14,706.74,0.2829895]
[1735743674484,1.04199792,708.37,706.74,0.2829895]
[1735743674687,0.26014316,708.36,706.74,0.2829895]
[1735743675886,0.26014316,708.35,706.74,0.2829895]
[1735743676084,0.26014316,708.34,706.74,0.2829895]
[1735743676286,0.26014316,708.33,706.74,0.2829895]
[1735743676486,1.04199792,708.38,706.74,0.2829895]
[1735743676487,0.26014316,708.32,706.74,0.2829895]
[1735743676683,0.26014316,708.31,706.74,0.2829895]
[1735743676890,0.26014316,708.3,706.74,0.2829895]
[1735743677088,0.26014316,708.29,706.74,0.2829895]
[1735743677285,0.26014316,708.28,706.74,0.2829895]
[1735743677491,0.26014316,708.27,706.74,0.2829895]
[1735743677691,0.26010598,708.26,706.74,0.2829895]
[1735743677892,0.26010598,708.25,706.78,1.04623944]
[1735743678094,0.26010598,708.24,706.78,1.04623944]
[1735743678395,0.2601019,708.23,706.78,1.04623944]
[1735743678599,0.2601019,708.22,706.78,1.04623944]
[1735743678794,0.2601019,708.21,706.78,1.04623944]
[1735743678993,1.04199792,708.43,706.78,1.04623944]
[1735743678994,0.2601019,708.2,706.78,1.04623944]
[1735743679198,0.2601019,708.19,706.94,1.04623944]
[1735743679396,1.04199792,708.4,706.94,1.04623944]
[1735743679397,0.2601019,708.18,706.94,1.04623944]
[1735743679698,0.2601019,708.17,706.94,1.04623944]
[1735743679894,1.04199792,708.4,706.94,1.04623944]
[1735743679895,0.2601019,708.16,706.94,1.04623944]
[1735743680096,0.2601019,708.15,706.94,1.04623944]
[1735743680295,0.2601019,708.14,706.94,1.04623944]
[1735743680602,1.04199792,708.42,706.93,1.04623944]
[1735743680794,0.26010689,708.41,706.93,1.04623944]
[1735743681190,1.04199792,708.4,706.92,1.04623944]
[1735743681394,0.26010689,708.39,706.92,1.04623944]
[1735743682491,0.26010689,708.39,706.93,1.04623944]
[1735743682897,1.04199792,708.4,706.93,1.04623944]
[1735743683093,0.26010428,708.39,706.93,1.04623944]
[1735743683494,1.3021022,708.39,706.93,1.04623944]
[1735743683696,0.26010428,708.38,706.93,1.04623944]
[1735743684601,0.26010428,708.38,706.94,1.04623944]
[1735743685595,1.04199792,708.39,706.94,1.04623944]
[1735743685899,1.04199792,708.4,706.96,1.04623944]
[1735743686803,0.28228253,708.51,706.88,1.04623944]
[1735743687002,0.26005981,708.5,706.88,1.04623944]
[1735743687801,0.26005981,708.5,706.87,1.04623944]
[1735743688198,0.26005232,708.49,706.87,1.04623944]
[1735743688402,0.26005232,708.48,706.87,1.04623944]
[1735743688604,0.26005232,708.47,706.87,1.04623944]
[1735743688804,0.28228253,708.51,706.88,1.04623944]
[1735743689005,0.26004959,708.5,706.88,1.04623944]
[1735743689305,0.26004959,708.5,706.89,0.28292945]
[1735743691005,0.26005671,708.49,706.89,0.28292945]
[1735743691207,0.26005671,708.48,706.89,0.28292945]
[1735743691421,0.28228253,708.51,706.89,0.28292945]
[1735743691422,0.26005671,708.47,706.89,0.28292945]
[1735743691600,0.26005671,708.46,706.89,0.28292945]
[1735743691804,0.26005671,708.45,706.89,0.28292945]
[1735743692021,0.26005671,708.44,706.89,0.28292945]
[1735743692305,0.26005671,708.43,706.89,0.28292945]
[1735743692504,0.26005671,708.42,706.89,0.28292945]
[1735743692701,0.28228253,708.51,706.89,0.28292945]
[1735743694913,0.26006182,708.5,706.89,0.28292945]
[1735743695408,0.28228253,708.51,706.89,0.28292945]
[1735743696109,0.26005563,708.5,706.89,0.28292945]
[1735743696611,0.28228253,708.51,706.89,0.28292945]
[1735743697002,0.26005526,708.5,706.89,0.28292945]
[1735743697403,0.28228253,708.51,706.89,0.28292945]
[1735743698307,0.26005241,708.5,706.89,0.28292945]
[1735743698706,0.28228253,708.51,706.89,0.28292945]
[1735743698906,0.2600551,708.5,706.89,0.28292945]
[1735743699704,0.28228253,708.51,706.89,0.28292945]
[1735743699909,0.26005237,708.5,706.89,0.28292945]
[1735743700910,0.28228253,708.51,706.89,0.28292945]
[1735743701131,0.26005077,708.5,706.89,0.28292945]
[1735743701305,0.28228253,708.51,706.89,0.28292945]
[1735743701509,0.26005466,708.5,706.89,0.28292945]
[1735743701904,0.28228253,708.51,706.89,0.28292945]
[1735743702411,0.26004781,708.5,706.89,0.28292945]
[1735743703310,0.26005311,708.49,706.89,0.28292945]
[1735743703505,0.26005311,708.5,706.89,0.28292945]
[1735743703707,0.26005311,708.49,706.89,0.28292945]
[1735743703910,0.26005311,708.48,707.07,1.04623944]
[1735743704109,0.26005311,708.5,707.07,1.04623944]
[1735743704407,0.26005311,708.49,707.07,1.04623944]
[1735743704607,0.26005311,708.48,707.07,1.04623944]
[1735743704808,0.28228253,708.51,707.07,1.04623944]
[1735743704809,0.26005311,708.47,707.07,1.04623944]
[1735743705004,0.26005311,708.46,707.1,1.04623944]
[1735743705208,0.26005311,708.45,707.1,1.04623944]
[1735743705410,0.26005311,708.44,707.1,1.04623944]
[1735743705605,0.26005311,708.43,707.1,1.04623944]
[1735743705806,0.28228253,708.51,707.1,1.04623944]
[1735743705807,0.26005311,708.42,707.1,1.04623944]
[1735743706112,0.26005311,708.41,707.1,1.04623944]
[1735743706415,0.28228253,708.51,707.13,1.04623944]
[1735743706713,0.26000736,708.5,707.13,1.04623944]
[1735743707509,0.26000736,708.5,707.2,1.04623944]
[1735743708810,0.26000736,708.5,707.24,1.04623944]
[1735743709215,0.28228253,708.51,707.24,1.04623944]
[1735743709612,0.25999639,708.5,707.23,1.04623944]
[1735743710016,0.28228253,708.51,707.23,1.04623944]
[1735743710719,0.28228253,708.51,707.16,1.04623944]
[1735743711212,0.28228253,708.51,707.17,0.28281742]
[1735743717919,1.47513882,708.5,707.17,0.28281742]
[1735743720723,0.26004319,708.49,707.17,0.28281742]
[1735743722124,1.04199792,708.48,707.17,0.28281742]
[1735743722321,0.26004319,708.47,707.17,0.28281742]
[1735743723121,1.04199792,708.4,707.17,0.28281742]
[1735743723427,0.26004319,708.39,707.17,0.28281742]
[1735743724327,1.04199792,708.44,707.17,0.28281742]
[1735743724629,0.26006007,708.43,707.17,0.28281742]
[1735743725019,1.04199792,708.44,707.17,0.28281742]
[1735743725020,0.26005911,708.42,707.17,0.28281742]
[1735743725220,1.47513882,708.5,707.17,0.28281742]
[1735743725221,0.26005911,708.41,707.17,0.28281742]
[1735743725423,0.26005911,708.4,707.17,0.28281742]
[1735743725626,0.26005911,708.39,707.17,0.28281742]
[1735743725926,0.26005911,708.38,707.17,0.28281742]
[1735743726120,0.26005911,708.37,707.17,0.28281742]
[1735743726320,1.47513882,708.5,707.17,0.28281742]
[1735743726321,0.26005911,708.36,707.17,0.28281742]
[1735743726522,1.04199792,708.49,707.17,0.28281742]
[1735743726722,0.26005581,708.48,707.17,0.28281742]
[1735743726921,1.04199792,708.49,707.17,0.28281742]
[1735743727125,0.26005404,708.48,707.17,0.28281742]
[1735743727519,1.30205196,708.48,707.17,0.28281742]
[1735743727727,0.26005404,708.47,707.17,0.28281742]
[1735743728529,1.30205196,708.47,707.17,0.28281742]
[1735743728726,0.26005404,708.46,707.17,0.28281742]
[1735743730727,0.26005404,708.45,707.17,0.28281742]
[1735743730927,0.26005404,708.44,707.17,0.28281742]
[1735743731128,0.26005404,708.43,707.17,0.28281742]
[1735743731329,0.26005404,708.42,707.17,0.28281742]
[1735743731530,0.26005404,708.41,707.17,0.28281742]
[1735743731731,1.47522741,708.41,707.17,0.28281742]
[1735743732529,0.26005761,708.4,707.17,0.28281742]
[1735743732929,0.26006513,708.39,707.17,0.28281742]
[1735743733135,0.26006513,708.38,707.17,0.28281742]
[1735743733329,0.26006513,708.37,707.17,0.28281742]
[1735743733530,1.47522741,708.41,707.17,0.28281742]
[1735743733726,0.2600625,708.4,707.17,0.28281742]
[1735743733925,1.47522741,708.41,707.17,0.28281742]
[1735743744735,0.2600891,708.4,707.17,0.28281742]
[1735743745940,1.47522741,708.41,707.17,0.28281742]
[1735743760456,0.26008748,708.4,707.17,0.28281742]
[1735743761059,1.47522741,708.41,707.17,0.28281742]
[1735743761955,0.26006355,708.4,707.17,0.28281742]
[1735743762959,0.26006355,708.4,707.19,1.04623944]
[1735743762960,1.04199792,708.36,707.19,1.04623944]
[1735743763154,0.26006355,708.35,707.19,1.04623944]
[1735743763358,1.04199792,708.36,707.19,1.04623944]
[1735743763557,0.26005274,708.35,707.19,1.04623944]
[1735743763954,1.04199792,708.36,707.19,1.04623944]
[1735743764154,0.26005182,708.35,707.19,1.04623944]
[1735743764360,0.26005182,708.35,707.17,0.28281742]
[1735743764361,0.26005182,708.35,707.21,1.04623944]
[1735743764557,1.04199792,708.38,707.21,1.04623944]
[1735743765660,1.47522741,708.41,707.17,0.28281742]
[1735743766660,1.04199792,708.45,707.17,0.28281742]
[1735743768065,0.28228253,708.51,707.17,0.28281742]
[1735743768363,0.26002398,708.5,707.17,0.28281742]
[1735743768763,0.28228253,708.51,707.17,0.28281742]
[1735743768956,0.26002449,708.5,707.17,0.28281742]
[1735743769154,0.28228253,708.51,707.17,0.28281742]
[1735743769559,0.26002304,708.5,707.17,0.28281742]
[1735743770064,0.28228253,708.51,707.17,0.28281742]
[1735743774860,0.2600371,708.5,707.17,0.28281742]
[1735743777363,0.26006199,708.49,707.17,0.28281742]
[1735743777560,0.26006199,708.48,707.17,0.28281742]
[1735743777763,0.26006199,708.47,707.17,0.28281742]
[1735743777962,0.26006199,708.46,707.17,0.28281742]
[1735743778164,0.26006199,708.45,707.17,0.28281742]
[1735743778365,0.26006199,708.44,707.17,0.28281742]
[1735743778566,0.26006199,708.43,707.17,0.28281742]
[1735743781960,0.26006595,708.42,707.17,0.28281742]
[1735743782163,0.26006595,708.41,707.17,0.28281742]
[1735743782365,0.26006595,708.4,707.17,0.28281742]
[1735743782574,0.26006595,708.39,707.17,0.28281742]
[1735743782768,0.26006595,708.38,707.17,0.28281742]
[1735743782970,0.26006595,708.37,707.17,0.28281742]
[1735743783271,0.26006595,708.36,707.17,0.28281742]
[1735743783470,0.26006595,708.35,707.17,0.28281742]
[1735743783664,0.26006595,708.34,707.17,0.28281742]
[1735743783874,0.26006595,708.33,707.17,0.28281742]
[1735743784068,0.26006595,708.32,707.17,0.28281742]
[1735743784270,0.26006595,708.31,707.17,0.28281742]
[1735743784570,0.26008549,708.3,707.17,0.28281742]
[1735743784770,0.26008594,708.29,707.17,0.28281742]
[1735743784970,0.26008594,708.28,707.17,0.28281742]
[1735743785165,0.26008594,708.27,707.17,0.28281742]
[1735743785369,1.04199792,708.38,707.17,0.28281742]
[1735743785569,0.26007817,708.37,707.17,0.28281742]
[1735743786165,1.04199792,708.41,707.17,0.28281742]
[1735743786166,0.26007817,708.36,707.17,0.28281742]
[1735743786370,0.26007817,708.35,707.17,0.28281742]
[1735743786569,1.04199792,708.41,707.17,0.28281742]
[1735743786570,0.26007817,708.34,707.17,0.28281742]
[1735743786772,0.26007817,708.33,707.17,0.28281742]
[1735743786965,0.26007817,708.4,707.17,0.28281742]
[1735743787166,0.26007817,708.39,707.17,0.28281742]
[1735743787974,0.26007817,708.39,707.25,1.05843221]
[1735743788790,0.26007817,708.39,707.26,1.05843221]
[1735743788973,0.26007817,708.38,707.26,1.05843221]
[1735743789173,0.26007817,708.37,707.26,1.05843221]
[1735743789373,0.26007817,708.36,707.26,1.05843221]
[1735743789581,0.26007817,708.35,707.26,1.05843221]
[1735743789772,1.04199792,708.41,707.26,1.05843221]
[1735743789971,1.47518051,708.37,707.26,1.05843221]
[1735743790169,0.2600854,708.36,707.19,1.05843221]
[1735743792074,0.2600854,708.36,707.2,1.05843221]
[1735743793471,1.47518051,708.37,707.2,1.05843221]
[1735743794377,1.47518051,708.37,707.24,1.05843221]
[1735743795880,1.47518051,708.37,707.22,1.05843221]
[1735743797180,1.47518051,708.37,707.19,1.05843221]
[1735743798079,1.47518051,708.37,707.21,1.05843221]
[1735743799180,1.47518051,708.37,707.19,1.05843221]
[1735743800080,1.47518051,708.37,707.21,1.05843221]
[1735743801381,1.47518051,708.37,707.19,1.05843221]
[1735743802980,1.47518051,708.37,707.17,0.28281742]
[1735743802981,1.47518051,708.37,707.18,1.05843221]
[1735743803981,1.47518051,708.37,707.2,1.05843221]
[1735743804582,0.26008357,708.36,707.2,1.05843221]
[1735743805077,0.26008357,708.36,707.18,1.05843221]
[1735743805683,0.26009452,708.35,707.18,1.05843221]
[1735743805881,0.26009452,708.34,707.18,1.05843221]
[1735743806081,0.26009452,708.33,707.18,1.05843221]
[1735743806281,0.26009452,708.32,707.25,1.05843221]
[1735743806478,0.26009452,708.31,707.25,1.05843221]
[1735743806679,0.26009452,708.3,707.25,1.05843221]
[1735743806878,0.26009452,708.29,707.25,1.05843221]
[1735743807078,0.26009452,708.28,707.25,1.05843221]
[1735743807280,0.26009452,708.27,707.25,1.05843221]
[1735743807583,0.26009452,708.26,707.27,1.05843221]
[1735743807777,1.04199792,708.32,707.27,1.05843221]
[1735743807983,0.26008767,708.31,707.27,1.05843221]
[1735743808279,0.26009289,708.3,707.27,1.05843221]
[1735743808485,0.26009289,708.29,707.27,1.05843221]
[1735743808684,0.26009289,708.28,707.27,1.05843221]
[1735743808886,0.26009289,708.28,707.17,0.28281742]
[1735743808887,0.26009289,708.27,707.29,1.05843221]
[1735743809083,0.26009289,708.26,707.29,1.05843221]
[1735743809384,1.04199792,708.33,707.29,1.05843221]
[1735743809684,0.26009023,708.32,707.29,1.05843221]
[1735743810085,1.04199792,708.28,707.33,1.05843221]
[1735743810278,0.26009023,708.27,707.33,1.05843221]
[1735743810885,1.04199792,708.28,707.33,1.05843221]
[1735743811087,1.04199792,708.27,707.34,1.05843221]